bitfinex-derivatives/quotes_ETHF0:USTF0_20241229
["timestamp","ask_amount","ask_price","bid_price","bid_amount"]
[1735489943282,0.2988,3352.5,3352.4,2.25955308]
[1735489943489,2.31271527,3352.6,3352.3,1.23]
[1735489943686,0.29881,3352.4,3352.3,1.23]
[1735489944183,2.31271527,3352.6,3352.1,2.25955308]
[1735489944378,0.29883,3352.2,3352.1,2.25955308]
[1735489944780,1.32253,3352.2,3352.1,2.25955308]
[1735489945085,1.32253,3352.2,3351.9,1.52886]
[1735489945086,0.29885,3352.0,3351.9,1.52886]
[1735489945286,0.29885,3352.0,3351.9,1.23]
[1735489946885,0.97,3352.1,3351.6,40.8]
[1735489947084,0.97,3352.1,3351.5,2.55844308]
[1735489947085,0.29888,3351.6,3351.5,2.25955308]
[1735489947492,0.9616,3351.7,3351.2,10.1466943]
[1735489947699,0.9616,3351.7,3351.2,11.6756043]
[1735489947991,0.29891,3351.3,3351.2,11.6756043]
[1735489948789,0.29891,3351.3,3351.2,6.99626308]
[1735489948989,2.31271527,3351.6,3351.2,6.69735308]
[1735489949191,0.29891,3351.3,3351.2,5.76626308]
[1735489949493,1.30039,3351.5,3351.4,0.2989]
[1735489949692,0.2989,3351.4,3351.3,0.2989]
[1735489951595,1.3004,3351.5,3351.4,0.2989]
[1735489952590,5.52051527,3351.7,3351.6,0.29888]
[1735489952899,5.52051527,3351.7,3351.6,2.55843308]
[1735489953089,5.52051527,3351.7,3351.6,43.35843308]
[1735489954003,1.28263,3352.2,3351.6,43.05955308]
[1735489954302,1.28263,3352.2,3352.1,0.29884]
[1735489955603,0.9838,3352.2,3352.1,0.29884]
[1735489956091,5.52051527,3352.3,3352.2,0.29883]
[1735489956092,3.2078,3352.3,3352.2,0.29883]
[1735489956300,3.2078,3352.3,3352.2,2.55838308]
[1735489956696,3.2078,3352.3,3352.2,43.35838308]
[1735489958398,2.31271527,3352.8,3352.2,43.05955308]
[1735489958399,3.2078,3352.6,3352.2,43.05955308]
[1735489958610,3.2078,3352.6,3352.5,2.55835308]
[1735489959100,2.31271527,3352.9,3352.5,2.25955308]
[1735489959295,2.31271527,3352.9,3352.8,0.29878]
[1735489960600,5.49226,3353.0,3352.6,1.23]
[1735489960898,5.1935,3353.0,3352.9,0.29877]
[1735489961406,5.49226,3353.0,3352.9,0.29877]
[1735489962503,5.49226,3353.0,3352.8,0.29877]
[1735489963102,5.49226,3353.0,3352.6,1.23]
[1735489963301,5.49226,3353.0,3352.9,0.29877]
[1735489963807,5.49226,3353.0,3352.6,1.23]
[1735489964005,5.49226,3353.0,3352.8,0.29877]
[1735489965107,5.49226,3353.0,3352.9,0.29877]
[1735489966306,5.49226,3353.0,3352.8,0.29877]
[1735489968110,0.29877,3352.9,3352.8,0.29877]
[1735489969406,5.1935,3353.0,3352.2,5.46735308]
[1735489969612,0.29881,3352.4,3352.3,0.29882]
[1735489971411,0.29881,3352.5,3352.4,0.29881]
[1735489973315,0.2988,3352.6,3352.5,0.2988]
[1735489974712,3.2078,3352.7,3352.2,3.48955308]
[1735489974914,3.2078,3352.7,3352.0,46.0218]
[1735489975212,0.29883,3352.3,3352.2,0.29883]
[1735489976513,0.9996,3352.6,3352.1,1.229]
[1735489976713,2.0387,3352.2,3352.1,1.52784]
[1735489977817,2.33753,3352.2,3352.1,1.52784]
[1735489979908,0.29884,3352.1,3352.0,42.029]
[1735489980104,0.29887,3351.7,3351.6,2.55843308]
[1735489980413,0.29887,3351.7,3351.6,3.78743308]
[1735489980712,0.29889,3351.5,3351.4,4.67934122]
[1735489981118,0.29889,3351.5,3351.4,40.8]
[1735489981617,0.2989,3351.4,3351.3,1.229]
[1735489981805,4.5136,3351.4,3351.3,1.229]
[1735489982413,0.29891,3351.3,3351.2,4.67934122]
[1735489983115,4.2147,3351.4,3350.9,1.52794]
[1735489983116,0.29894,3351.0,3350.9,1.52794]
[1735489983318,0.29894,3350.9,3350.8,40.8]
[1735489983513,0.29896,3350.8,3350.6,0.29897]
[1735489983712,0.9892,3350.9,3350.6,0.29897]
[1735489983914,1.35297,3350.7,3350.6,40.8]
[1735489985708,0.299,3350.4,3350.2,0.299]
[1735489985918,4.1809,3350.6,3349.8,6.9388943]
[1735489986114,0.29903,3349.9,3349.8,6.9388943]
[1735489986309,0.29903,3350.0,3349.8,47.7388943]
[1735489986511,0.9615,3349.9,3349.8,48.0379343]
[1735489987513,0.9615,3349.9,3349.8,40.8]
[1735489987716,0.9615,3349.9,3349.7,0.29905]
[1735489987907,0.9615,3349.9,3349.8,0.29904]
[1735489988708,0.9615,3349.9,3349.5,3.48955308]
[1735489988915,0.29907,3349.6,3349.4,1.23]
[1735489989112,1.0212,3349.8,3349.2,2.25955308]
[1735489989313,1.0212,3349.8,3349.0,0.29911]
[1735489989314,3.50689,3349.3,3349.0,0.29911]
[1735489989520,3.2078,3349.3,3348.9,2.25955308]
[1735489989716,3.50689,3349.3,3349.0,0.29911]
[1735489990219,3.2078,3349.8,3349.2,2.25955308]
[1735489990518,3.2078,3349.8,3349.7,0.29905]
[1735489990717,3.2078,3349.8,3349.5,2.25955308]
[1735489990718,3.2078,3349.8,3349.5,1.23]
[1735489991019,3.2078,3349.8,3349.7,0.29905]
[1735489991613,3.2078,3349.8,3349.7,41.09905]
[1735489993322,3.2078,3349.8,3349.7,40.8]
[1735489993631,3.50684,3349.8,3349.7,40.8]
[1735489993814,3.2078,3349.8,3349.3,3.2078]
[1735489994010,0.29906,3349.6,3349.3,3.50688]
[1735489994222,1.26265,3349.7,3349.4,0.29907]
[1735489994523,1.26265,3349.7,3349.5,0.29906]
[1735489994524,0.9636,3349.7,3349.5,0.29906]
[1735489994719,0.9636,3349.7,3349.3,3.2078]
[1735489994922,0.29908,3349.4,3349.3,3.2078]
[1735489995615,3.2078,3349.4,3348.9,2.55867308]
[1735489995817,0.2991,3349.2,3349.0,0.29911]
[1735489996023,1.0556,3349.1,3349.0,0.29911]
[1735489997418,1.35471,3349.1,3348.9,41.09912]
[1735489997619,0.29911,3349.0,3348.9,40.8]
[1735489997821,0.29911,3349.0,3348.8,1.52913]
[1735489998520,3.2078,3349.0,3348.4,3.2078]
[1735489998720,0.29915,3348.6,3348.4,4.73696]
[1735489999024,0.29914,3348.8,3348.6,0.29915]
[1735490000218,4.32745308,3348.9,3348.0,3.2078]
[1735490000423,9.32745308,3348.9,3348.0,3.2078]
[1735490000624,3.2078,3348.6,3348.0,3.2078]
[1735490000827,0.29919,3348.2,3348.0,3.507]
[1735490001129,0.29919,3348.2,3347.9,1.23]
[1735490001130,1.057,3348.1,3347.4,3.2078]
[1735490001425,2.0827,3348.1,3347.8,0.29922]
[1735490001626,0.29921,3348.0,3347.8,0.29922]
[1735490002427,2.0827,3348.1,3347.5,40.8]
[1735490002621,2.0827,3348.1,3347.6,2.25955308]
[1735490002821,3.2078,3348.2,3348.1,0.29919]
[1735490003022,3.2078,3348.7,3348.6,0.29915]
[1735490003636,2.25955308,3349.5,3348.6,0.29915]
[1735490003637,3.2078,3349.1,3349.0,0.29911]
[1735490003827,3.2078,3349.1,3348.6,42.03]
[1735490004219,3.2078,3349.1,3349.0,0.29911]
[1735490005622,3.2078,3349.1,3348.6,42.03]
[1735490006129,0.29914,3348.8,3348.6,1.23]
[1735490006423,3.2078,3349.1,3347.6,3.2078]
[1735490006424,3.2078,3348.7,3347.6,3.2078]
[1735490006626,0.29919,3348.1,3347.6,3.2078]
[1735490006819,1.0266,3348.0,3347.8,0.29922]
[1735490007024,0.9601,3347.9,3347.8,0.29922]
[1735490007332,0.9601,3347.9,3347.7,0.29923]
[1735490007535,0.9601,3347.9,3347.6,3.50704]
[1735490007536,1.25931,3347.9,3347.6,3.50704]
[1735490008032,0.29923,3347.8,3347.6,3.2078]
[1735490008423,1.9146,3347.9,3347.6,3.2078]
[1735490008633,3.2078,3347.7,3346.7,4.4378]
[1735490008830,3.2078,3347.2,3346.7,6.69735308]
[1735490009032,3.2078,3347.2,3347.0,0.29929]
[1735490009331,3.2078,3347.7,3347.0,2.25955308]
[1735490009732,3.50703,3347.7,3347.4,0.29925]
[1735490010238,3.50703,3347.7,3347.4,0.29926]
[1735490010239,3.2078,3347.7,3347.4,0.29926]
[1735490010529,3.2078,3347.7,3347.4,0.29925]
[1735490010930,3.2078,3347.7,3347.5,0.29925]
[1735490011230,3.2078,3347.7,3347.4,0.29925]
[1735490011430,3.2078,3347.7,3347.5,0.29925]
[1735490011830,3.2078,3347.7,3347.0,2.25955308]
[1735490012029,0.29925,3347.5,3347.2,0.29927]
[1735490012232,3.2078,3347.7,3346.7,5.46735308]
[1735490012429,0.29927,3347.3,3347.0,0.29929]
[1735490012734,4.49428,3347.2,3346.7,46.26735308]
[1735490012934,0.29931,3346.8,3346.4,2.55889308]
[1735490013136,0.29929,3347.0,3346.3,3.2078]
[1735490013326,1.9964,3347.1,3346.5,2.25955308]
[1735490013534,0.9774,3347.1,3346.5,2.25955308]
[1735490013731,1.27669,3347.1,3346.8,0.29931]
[1735490013931,0.9774,3347.1,3346.9,0.2993]
[1735490014234,0.9774,3347.1,3346.8,0.29931]
[1735490014435,0.9774,3347.1,3346.5,3.25925308]
[1735490014636,0.9774,3347.1,3346.8,0.2993]
[1735490015034,0.9774,3347.1,3346.6,0.29933]
[1735490015231,0.9774,3347.1,3346.5,3.25925308]
[1735490015532,0.9774,3347.1,3347.0,0.29929]
[1735490015834,4.49428,3347.2,3346.9,0.2993]
[1735490016029,4.49428,3347.2,3346.5,4.22975308]
[1735490016030,4.195,3347.2,3346.5,4.22975308]
[1735490016235,4.195,3347.2,3346.4,40.8]
[1735490016535,0.2993,3346.9,3346.7,0.29932]
[1735490016728,0.2993,3346.9,3346.6,0.29932]
[1735490016924,0.29932,3346.7,3346.3,3.2078]
[1735490017130,1.0443,3346.8,3346.3,3.2078]
[1735490017431,0.29935,3346.4,3346.3,3.2078]
[1735490017632,3.2078,3346.7,3346.6,0.29933]
[1735490018028,1.0443,3346.8,3346.7,0.29932]
[1735490018832,3.2078,3347.1,3347.0,0.29929]
[1735490019433,3.2078,3347.8,3347.0,5.2534]
[1735490019638,3.2078,3347.8,3347.7,0.29923]
[1735490020029,3.2078,3347.8,3347.2,2.25955308]
[1735490020233,3.2078,3347.8,3347.6,0.29923]
[1735490020537,3.2078,3347.8,3347.7,0.29923]
[1735490022258,3.2078,3347.8,3347.5,2.25955308]
[1735490022259,3.2078,3348.4,3347.5,2.25955308]
[1735490022436,3.0202,3349.0,3348.6,0.29915]
[1735490022639,5.27975308,3349.0,3348.4,0.29916]
[1735490022835,5.27975308,3349.0,3348.2,4.4388]
[1735490023141,0.29916,3348.5,3348.3,0.29918]
[1735490023731,3.2078,3348.7,3348.3,0.29918]
[1735490023932,0.29916,3348.5,3348.2,1.231]
[1735490024139,0.29916,3348.5,3348.2,1.53018]
[1735490024338,0.29916,3348.5,3348.3,0.29918]
[1735490024535,5.46735308,3348.7,3347.8,3.2078]
[1735490024741,0.29921,3348.0,3347.8,3.50702]
[1735490024940,2.25955308,3348.4,3347.8,3.2078]
[1735490025135,2.918,3348.3,3347.8,3.2078]
[1735490025437,0.2992,3348.1,3347.9,0.29921]
[1735490026238,0.2992,3348.1,3347.8,0.29922]
[1735490026544,6.1258,3348.3,3347.6,1.23]
[1735490026739,0.2992,3348.1,3347.9,0.29921]
[1735490027041,0.29919,3348.2,3347.9,0.2992]
[1735490027236,6.42498,3348.3,3348.1,0.29919]
[1735490027437,3.2078,3348.8,3347.8,5.46735308]
[1735490027641,3.2078,3348.8,3348.1,2.25955308]
[1735490027841,3.2078,3348.8,3348.2,1.0397]
[1735490028035,3.2078,3348.8,3348.3,3.2078]
[1735490028237,3.2078,3348.8,3348.3,0.29917]
[1735490028442,0.29916,3348.6,3348.4,0.29917]
[1735490028643,3.2078,3348.8,3348.2,0.29918]
[1735490028938,0.29916,3348.5,3348.3,0.29917]
[1735490029241,0.29916,3348.5,3348.2,0.29918]
[1735490029441,3.2078,3348.8,3347.9,1.0174]
[1735490029636,1.0303,3348.4,3348.2,0.29918]
[1735490030040,0.29918,3348.3,3348.1,0.29919]
[1735490030238,1.0413,3348.3,3347.9,1.23]
[1735490030541,1.35299,3348.2,3347.9,1.52921]
[1735490030742,1.0538,3348.2,3347.9,1.52921]
[1735490030935,1.0538,3348.2,3347.9,1.23]
[1735490031239,3.507,3348.0,3347.6,1.0174]
[1735490031545,3.507,3348.0,3347.8,0.29922]
[1735490031837,0.29922,3347.9,3347.6,0.29923]
[1735490032039,0.29926,3347.4,3347.2,0.29927]
[1735490032433,1.0463,3347.3,3347.2,0.29927]
[1735490032637,3.2078,3348.0,3347.5,0.29925]
[1735490032838,3.2078,3348.0,3347.2,0.29927]
[1735490033248,3.2078,3348.0,3347.0,4.4378]
[1735490033249,0.29928,3347.1,3347.0,3.2078]
[1735490033447,0.29928,3347.1,3346.9,0.2993]
[1735490033648,3.2078,3347.3,3346.8,2.2504]
[1735490033853,2.0695,3347.6,3346.8,2.2504]
[1735490033854,1.0463,3347.6,3347.5,0.29925]
[1735490034142,1.0463,3347.6,3347.4,0.29926]
[1735490034350,1.34554,3347.6,3347.4,0.29926]
[1735490034541,1.0463,3347.6,3346.9,3.2078]
[1735490034943,1.0463,3347.6,3346.9,4.4378]
[1735490035242,3.2078,3347.7,3347.6,0.29924]
[1735490035646,3.2078,3347.7,3347.5,0.29924]
[1735490035846,3.2078,3347.7,3347.1,2.25955308]
[1735490036044,3.50703,3347.7,3347.5,0.29924]
[1735490036851,3.2078,3347.7,3347.1,2.25955308]
[1735490037149,3.2078,3347.7,3347.6,0.29924]
[1735490038946,2.3926,3348.0,3347.5,1.9392]
[1735490039253,0.29921,3347.9,3347.6,0.29923]
[1735490039550,0.29921,3347.9,3347.5,1.9392]
[1735490039748,0.29921,3347.9,3347.7,0.29923]
[1735490040353,2.39261,3348.0,3347.7,0.29923]
[1735490040549,0.29921,3347.9,3347.7,0.29923]
[1735490042061,2.39261,3348.0,3347.7,0.29923]
[1735490042254,2.39261,3348.0,3347.5,1.9392]
[1735490042457,3.2078,3348.2,3348.1,0.29919]
[1735490042756,2.31271527,3348.4,3348.3,0.29918]
[1735490043260,2.31271527,3348.4,3348.1,1.23]
[1735490043261,0.29919,3348.2,3348.1,1.23]
[1735490043461,3.34721527,3348.3,3348.1,1.23]
[1735490043658,3.64639527,3348.3,3348.1,1.52919]
[1735490044163,0.29919,3348.2,3348.1,1.23]
[1735490044362,2.31271527,3348.3,3348.1,1.23]
[1735490044554,1.27019,3348.2,3348.1,1.23]
[1735490044758,4.47799,3348.2,3348.1,1.23]
[1735490045559,3.2078,3348.2,3348.1,1.52919]
[1735490045759,3.2078,3348.2,3348.1,1.23]
[1735490045961,3.2078,3348.2,3348.1,1.52919]
[1735490046470,2.31271527,3348.3,3348.2,0.29919]
[1735490046659,2.31271527,3348.3,3348.2,1.30619]
[1735490047766,4.1812,3348.6,3348.2,1.007]
[1735490048061,4.1812,3348.6,3348.4,0.29916]
[1735490048266,0.9734,3348.6,3348.4,0.29916]
[1735490048466,0.9734,3348.6,3348.2,4.2148]
[1735490048767,0.9734,3348.6,3348.5,0.29916]
[1735490048967,4.30911527,3348.9,3348.2,5.1997]
[1735490049163,5.59254527,3348.9,3348.2,5.1997]
[1735490049463,5.59254527,3348.9,3348.6,0.29914]
[1735490049664,2.31271527,3348.9,3348.2,5.1997]
[1735490049858,2.31271527,3348.9,3348.6,0.29914]
[1735490049859,0.29913,3348.8,3348.6,0.29914]
[1735490050559,2.31271527,3348.9,3348.8,0.29913]
[1735490050761,2.31271527,3348.9,3348.2,5.1997]
[1735490051558,2.61183527,3348.9,3348.7,0.29914]
[1735490052165,5.52051527,3349.0,3348.2,5.1997]
[1735490052360,5.81963527,3349.0,3348.8,0.29912]
[1735490052562,5.52051527,3349.0,3348.2,5.1997]
[1735490052761,5.52051527,3349.0,3348.9,0.29912]
[1735490053162,5.52051527,3349.0,3348.9,1.52912]
[1735490053667,5.52051527,3349.0,3348.9,1.23]
[1735490053869,5.81962527,3349.0,3348.9,1.23]
[1735490055065,3.2078,3349.0,3348.9,1.23]
[1735490055367,3.2078,3349.0,3348.9,1.52912]
[1735490056263,2.31271527,3349.3,3349.2,0.2991]
[1735490056970,0.9887,3349.4,3348.9,1.23]
[1735490057162,0.9887,3349.4,3349.3,0.29909]
[1735490057871,5.52051527,3349.5,3349.4,0.29908]
[1735490058771,3.2078,3349.5,3349.4,0.29908]
[1735490061072,2.31271527,3350.2,3349.3,2.25955308]
[1735490061371,3.29511527,3350.2,3350.1,0.29902]
[1735490062573,3.29511527,3350.2,3350.0,0.29902]
[1735490062762,3.29511527,3350.2,3349.8,1.23]
[1735490062967,0.29904,3349.9,3349.8,0.29904]
[1735490063267,0.29903,3350.0,3349.4,0.9667]
[1735490063463,3.2078,3350.0,3349.7,0.29905]
[1735490063669,1.32634,3349.9,3349.7,0.29905]
[1735490063968,0.9971,3349.8,3349.5,1.23]
[1735490064171,0.29909,3349.3,3349.2,3.2078]
[1735490064365,0.29911,3349.1,3349.0,0.29911]
[1735490064564,0.29912,3349.0,3348.9,0.29912]
[1735490064869,0.29912,3349.0,3348.7,8.24901183]
[1735490064870,0.9565,3349.0,3348.7,1.23]
[1735490065073,0.29913,3348.8,3348.7,1.52914]
[1735490065367,0.29913,3348.8,3348.7,0.29914]
[1735490065569,0.29911,3349.0,3348.9,0.29912]
[1735490065774,0.29913,3348.9,3348.8,0.29913]
[1735490066572,0.29912,3349.0,3348.8,0.29912]
[1735490067963,0.29912,3349.0,3348.6,4.4378]
[1735490068166,0.29912,3348.9,3348.8,0.29913]
[1735490068473,0.29912,3348.9,3348.6,4.4378]
[1735490068474,1.0508,3349.2,3348.6,4.4378]
[1735490068874,1.0508,3349.2,3349.1,0.29911]
[1735490069075,0.29915,3348.7,3348.5,0.29915]
[1735490069271,5.46735308,3349.0,3348.2,4.4378]
[1735490069577,3.2078,3349.4,3349.3,0.29909]
[1735490070163,3.2078,3349.4,3349.3,41.09909]
[1735490070164,3.50688,3349.4,3349.3,41.09909]
[1735490070369,3.2078,3349.4,3349.3,41.09909]
[1735490070774,1.0448,3349.5,3349.4,0.29908]
[1735490070974,1.0448,3349.5,3349.4,3.50688]
[1735490071274,2.0411,3349.6,3349.5,0.29907]
[1735490072977,0.29907,3349.5,3349.4,0.29908]
[1735490073168,2.0411,3349.6,3349.2,1.23]
[1735490073378,2.0411,3349.6,3349.3,0.29909]
[1735490073576,0.29908,3349.4,3349.3,0.29909]
[1735490073977,0.29907,3349.5,3349.3,0.29909]
[1735490074870,2.34016,3349.6,3349.5,0.29907]
[1735490075271,2.0411,3349.6,3349.5,0.29907]
[1735490075680,2.34016,3349.6,3349.5,0.29907]
[1735490075881,2.0411,3349.6,3349.5,0.29907]
[1735490076375,3.2078,3349.8,3349.7,0.29905]
[1735490076581,1.9741,3350.0,3349.5,3.2078]
[1735490076782,1.9741,3350.0,3349.9,0.29903]
[1735490077869,2.31271527,3350.2,3350.1,0.29902]
[1735490078079,2.31271527,3350.2,3350.1,1.52902]
[1735490078584,3.2078,3350.3,3350.2,0.29901]
[1735490079079,0.9634,3350.4,3350.3,0.299]
[1735490079485,0.9976,3350.6,3350.5,0.29898]
[1735490079786,0.9976,3350.6,3350.4,0.29898]
[1735490079787,0.29898,3350.5,3350.4,0.29898]
[1735490079974,2.25998,3350.6,3350.4,0.29898]
[1735490080176,1.961,3350.6,3350.4,0.29898]
[1735490080375,1.961,3350.6,3350.2,1.23]
[1735490080577,2.25997,3350.6,3350.5,0.29898]
[1735490080882,1.961,3350.6,3350.5,0.29898]
[1735490081884,0.9634,3350.6,3350.5,0.29898]
[1735490082084,0.9634,3350.6,3350.5,3.50678]
[1735490082575,1.9992,3351.0,3350.9,0.29894]
[1735490083283,1.9992,3351.0,3350.5,3.2078]
[1735490083484,2.29814,3351.0,3350.8,0.29895]
[1735490083979,0.9827,3350.9,3350.8,0.29895]
[1735490087283,0.9827,3350.9,3350.5,3.2078]
[1735490087284,0.9827,3350.9,3350.6,0.29897]
[1735490087482,0.29896,3350.8,3350.6,0.29897]
[1735490088387,0.9827,3350.9,3350.6,1.23]
[1735490088589,0.29896,3350.7,3350.6,1.23]
[1735490088889,0.9827,3350.9,3350.5,3.2078]
[1735490089091,0.9827,3350.9,3350.5,4.4378]
[1735490089286,0.29897,3350.7,3350.5,4.73678]
[1735490089486,4.1905,3350.9,3350.5,1.52898]
[1735490089788,0.29896,3350.7,3350.5,1.52898]
[1735490090574,0.29896,3350.7,3350.6,0.29897]
[1735490090975,0.29896,3350.7,3350.5,1.52898]
[1735490091190,0.29898,3350.5,3350.4,1.23]
[1735490093991,3.50678,3350.5,3350.4,1.23]
[1735490094988,5.46735308,3350.5,3349.9,1.23]
[1735490095183,5.46735308,3350.5,3349.9,0.29903]
[1735490095184,0.29902,3350.0,3349.9,0.29903]
[1735490095981,0.9585,3350.2,3349.5,3.2078]
[1735490096181,0.29905,3349.8,3349.6,1.23]
[1735490096387,0.29905,3349.8,3349.7,0.29905]
[1735490096587,0.29905,3349.7,3349.6,1.52906]
[1735490096888,3.21805308,3350.2,3349.5,3.2078]
[1735490097084,4.2204,3349.6,3348.9,4.202]
[1735490097285,0.2991,3349.2,3349.1,0.2991]
[1735490097491,0.2991,3349.2,3349.1,41.0991]
[1735490097987,0.9585,3349.5,3348.9,3.50692]
[1735490098191,0.29911,3349.1,3349.0,1.52911]
[1735490098385,0.9585,3349.5,3349.0,1.52911]
[1735490098386,0.9585,3349.5,3349.0,0.29911]
[1735490098590,0.9585,3349.5,3348.8,1.23]
[1735490098785,0.9585,3349.5,3349.0,0.29911]
[1735490099091,0.9585,3349.5,3348.8,1.23]
[1735490099293,0.2991,3349.2,3349.0,0.29911]
[1735490099692,0.29911,3349.1,3348.9,0.29912]
[1735490099991,0.29911,3349.1,3348.8,1.23]
[1735490100195,0.29911,3349.1,3348.9,0.29912]
[1735490100687,0.29911,3349.1,3348.8,1.23]
[1735490100887,0.29908,3349.4,3349.1,0.2991]
[1735490101090,0.2991,3349.3,3349.1,0.2991]
[1735490101499,0.29908,3349.4,3349.2,0.29909]
[1735490103197,3.2078,3349.4,3349.2,0.29909]
[1735490103387,0.29908,3349.4,3349.2,0.2991]
[1735490103695,0.2991,3349.2,3349.1,0.2991]
[1735490103890,0.29909,3349.3,3349.1,0.2991]
[1735490104092,4.1663,3349.5,3348.8,1.23]
[1735490104285,3.2078,3349.5,3349.4,0.29908]
[1735490104695,3.50687,3349.5,3349.4,0.29908]
[1735490105195,3.2078,3349.5,3349.4,0.29908]
[1735490105395,3.2078,3349.5,3348.8,1.23]
[1735490105597,0.2991,3349.2,3349.1,0.2991]
[1735490105996,2.25955308,3349.3,3348.8,0.29913]
[1735490106197,0.29912,3349.0,3348.8,0.29913]
[1735490106592,0.29912,3349.0,3348.9,0.29912]
[1735490107204,1.30001,3349.1,3349.0,0.29911]
[1735490107492,1.0009,3349.1,3349.0,0.29911]
[1735490107898,0.29908,3349.4,3348.7,5.46735308]
[1735490108102,3.2078,3349.5,3349.4,0.29908]
[1735490108397,3.2078,3349.5,3349.4,1.52908]
[1735490108589,2.31271527,3349.7,3349.4,1.23]
[1735490108792,2.31271527,3349.7,3349.6,3.50686]
[1735490108993,2.31271527,3349.7,3349.6,44.30686]
[1735490109402,0.29902,3350.1,3350.0,0.29902]
[1735490110093,0.29905,3349.7,3349.6,3.50686]
[1735490110299,0.9892,3350.0,3349.6,3.50686]
[1735490110494,0.29905,3349.8,3349.6,3.2078]
[1735490110694,2.0003,3349.9,3349.8,0.29904]
[1735490111004,2.0003,3349.9,3349.6,3.2078]
[1735490111297,2.0003,3349.9,3349.8,0.29904]
[1735490111298,0.9591,3349.9,3349.8,0.29904]
[1735490111497,0.29901,3350.2,3349.6,3.2078]
[1735490111795,0.29901,3350.2,3350.0,0.29902]
[1735490112203,0.29903,3349.9,3349.8,0.29904]
[1735490112499,3.2078,3350.0,3349.4,1.52907]
[1735490112697,0.29907,3349.5,3349.4,0.29908]
[1735490113297,3.2078,3350.0,3349.6,0.29906]
[1735490113298,0.29906,3349.7,3349.6,0.29906]
[1735490113701,3.2078,3350.0,3349.3,0.74773]
[1735490113900,0.29903,3349.9,3349.8,0.29904]
[1735490114401,3.2078,3350.0,3349.2,3.2078]
[1735490114704,0.29905,3349.7,3349.6,0.29905]
[1735490115205,0.29905,3349.7,3349.2,3.2078]
[1735490115206,3.2078,3350.0,3349.2,3.2078]
[1735490115396,0.29904,3349.9,3349.8,0.29904]
[1735490115703,3.50683,3350.0,3349.9,0.29903]
[1735490115892,3.2078,3350.0,3349.9,0.29903]
[1735490116094,0.29902,3350.1,3349.9,0.29903]
[1735490116797,2.31271527,3350.2,3349.5,1.80508]
[1735490117004,2.31271527,3350.2,3350.1,0.29902]
[1735490117702,2.31271527,3350.3,3350.2,0.29901]
[1735490119298,3.2078,3350.4,3350.0,1.042]
[1735490119601,3.2078,3350.4,3350.3,0.299]
[1735490120996,2.26125,3350.9,3350.8,0.29895]
[1735490120997,1.9623,3350.9,3350.8,0.29895]
[1735490122697,2.26124,3350.9,3350.8,0.29895]
[1735490123002,0.9966,3350.9,3350.8,0.29895]
[1735490123506,0.29896,3350.8,3350.7,0.29896]
[1735490124998,0.29896,3350.7,3350.6,3.2078]
[1735490125199,3.95521,3350.7,3349.8,1.229]
[1735490125409,3.2078,3350.0,3349.8,1.229]
[1735490125705,2.25955308,3350.5,3349.8,1.229]
[1735490125706,2.32503,3349.9,3349.8,1.52804]
[1735490125899,2.026,3349.9,3349.8,1.52804]
[1735490126599,0.299,3350.3,3349.9,0.29903]
[1735490126801,3.5068,3350.3,3350.2,0.29901]
[1735490126999,3.2078,3350.3,3349.8,1.229]
[1735490127203,3.5068,3350.3,3350.1,0.29901]
[1735490127508,3.2078,3350.3,3349.8,1.229]
[1735490127694,3.50683,3349.9,3349.8,1.229]
[1735490128505,3.2078,3349.9,3349.8,1.52804]
[1735490128709,3.2078,3350.3,3349.9,0.29903]
[1735490129003,0.29902,3350.1,3349.9,0.29903]
[1735490129399,3.2078,3350.3,3349.8,1.229]
[1735490129400,0.29902,3350.0,3349.8,1.229]
[1735490129604,0.29902,3350.0,3349.8,1.52803]
[1735490129805,5.50626036,3350.3,3349.8,1.229]
[1735490130105,0.29906,3349.6,3349.5,1.52806]
[1735490130696,0.29906,3349.7,3349.5,1.52806]
[1735490130900,1.0542,3349.8,3349.5,1.229]
[1735490131107,1.0542,3349.8,3349.7,0.29905]
[1735490131801,0.29901,3350.2,3350.0,0.29902]
[1735490132002,1.33991,3350.2,3350.0,0.29902]
[1735490132201,3.33936036,3350.2,3349.7,44.0078]
[1735490132402,2.29846036,3350.2,3350.1,0.29902]
[1735490133608,3.2078,3350.4,3350.3,0.299]
[1735490133808,2.29846036,3350.7,3350.6,0.29897]
[1735490135003,3.2078,3350.9,3350.3,1.23]
[1735490135209,3.50679,3350.4,3350.3,1.23]
[1735490135803,3.2078,3350.4,3349.8,4.68445162]
[1735490136013,0.29903,3349.9,3349.8,4.68445162]
[1735490136211,2.25955308,3350.2,3349.7,8.25667744]
[1735490136409,2.28774,3349.8,3349.7,1.23]
[1735490137110,0.9961,3350.3,3349.7,1.23]
[1735490137308,0.9665,3350.2,3349.7,1.52905]
[1735490137711,3.26496036,3350.2,3349.7,1.52905]
[1735490138211,5.46735308,3349.9,3349.3,0.29908]
[1735490138610,0.29907,3349.5,3349.3,0.29908]
[1735490138811,0.955,3349.4,3349.3,0.29908]
[1735490139016,3.2078,3349.9,3349.2,4.4378]
[1735490139221,0.955,3349.8,3349.7,0.29905]
[1735490140217,0.955,3349.8,3349.2,4.4378]
[1735490140815,1.25405,3349.8,3349.6,0.29906]
[1735490141621,2.29846036,3350.1,3350.0,0.29902]
[1735490141821,2.29846036,3350.1,3349.7,1.0348]
[1735490142021,0.29902,3350.1,3350.0,41.09902]